Cogmind - Beta 10.2 @@@ ROGUE MODE // 2021.11.29 @ 17:52:37 Player: derk Result: Destroyed by P-80 Master with Gamma Rifle Performance ------------- Evolutions (8) 4000 Regions Visited (30) 6000 Robots Destroyed (375) 1875 Value Destroyed (21265) 21265 Prototype IDs (55) 1100 Alien Tech Used (0) 0 Bonus (8525) 8525 TOTAL SCORE: 42765 Bonus ------- Triggered Max Security 1000 High Alert Combat Kills 1427 Follower Combat Kills 1720 Entered Garrisons 1800 Used RIF Installer 4000 Aligned with FarCom 300 Friendly Fire -1722 Cogmind --------- Core Integrity 0/1450 Matter 293/300 Energy 99/100 System Corruption 45% Temperature Cool (0) Movement Core (50) Location -2/Quarantine Parts ------- > --- POWER (2) -------- (None) > --- PROPULSION (5) --- (None) > --- UTILITY (14) ----- Advanced Targeting Computer Advanced Target Analyzer Relay Coupler [NC] (26) Relay Coupler [NC] (38) Relay Coupler [NC] (44) Relay Coupler [Swarmer] (44) Relay Coupler [Grunt] (1) Relay Coupler [Hunter] (1) > --- WEAPON (2) ------- (None) > --- INVENTORY (4) ---- Light Particle Reactor High-capacity Storage Unit Experimental Energy Well (1000) Advanced Powered Armor Peak State ------------ > --- POWER ------------ Micro Fission Core Light Quantum Reactor > --- PROPULSION ------- Combat Gravmag System Improved Antigrav System Improved Antigrav System Improved Antigrav System Improved Antigrav System > --- UTILITY ---------- Advanced Cryofiber Web Advanced Cooling System High-capacity Storage Unit High-capacity Storage Unit Improved Targeting Computer Advanced Target Analyzer Improved Stasis Canceller Centrium Heavy Armor Plating Relay Coupler [NC] Relay Coupler [Grunt] Relay Coupler [Sentry] Relay Coupler [Hunter] > --- WEAPON ----------- Advanced Remote Datajack Force Lance > --- INVENTORY -------- Micro Fission Core Light Quantum Reactor Improved Antigrav System Combat Linear Gravjet Combat Linear Gravjet Advanced Cooling System Matter Compressor Advanced Powered Armor Relay Coupler [NC] Relay Coupler [NC] Relay Coupler [NC] Relay Coupler [NC] Relay Coupler [Swarmer] Shock Bomb Launcher Advanced Remote Datajack [Rating: 135] Favorites ----------- Power Micro Fission Core Engine Reinforced Deuterium Engine Power Core Micro Fission Core Reactor Reinforced Antimatter Reactor Propulsion Combat Linear Gravjet Treads Light Treads Leg Improved Carbon-fiber Leg Wheel Armored Huge Wheel Hover Unit Combat Linear Gravjet Flight Unit Field Propulsion Array Utility Relay Coupler [NC] Device Advanced Cooling System Storage Humpback Processor Advanced Target Analyzer Hackware Relay Coupler [NC] Protection Improved Medium Armor Plating Weapon Precision Assault Rifle Energy Gun Advanced Beam Rifle Energy Cannon Plasma Cannon Ballistic Gun Precision Assault Rifle Ballistic Cannon Mini Assault Cannon Launcher Advanced EMP Blaster Special Weapon Improved Remote Datajack Impact Weapon Impact Mace Slashing Weapon Katana Piercing Weapon Lance Special Melee Weapon Improved Datajack Build | -11 -10 -10 -10 -9 -8 -8 -8 -8 -7 -7 -7 -7 -7 -7 -6 -6 -5 -5 -5 -5 -5 -5 -4 -4 -4 -4 -3 -3 -2 -2 ------- Run | Scr Mat Min Exi Min Mat Gar Mat Gar Fac Was Fac Gar Fac Gar Fac Gar Fac Was Fac Gar Fac Gar Fac Was Fac Gar Res Gar Res Qua Slots Evolved 16 | . . . . . 4 . . . 2 . . . . . 2 . 2 . . . . . 2 . . . 2 . 2 . Power 1 | . . . . . . . . . . . . . . . . . . . . . . . 1 . . . . . . . Propulsion 3 | . . . . . 1 . . . . . . . . . . . 1 . . . . . . . . . . . 1 . Utility 12 | . . . . . 3 . . . 2 . . . . . 2 . 1 . . . . . 1 . . . 2 . 1 . Weapon . | . . . . . . . . . . . . . . . . . . . . . . . . . . . . . . . Parts Attached 714 | 7 17 6 1 5 20 9 25 12 17 5 20 14 21 21 72 12 34 4 68 25 30 35 16 2 6 16 88 34 66 6 Power 61 | 1 2 . . . 2 . . . . . 1 1 1 1 5 1 2 . 4 2 1 2 1 1 . 1 15 6 11 . Engine 17 | 1 2 . . . 1 . . . . . 1 . 1 1 5 1 1 . . . . . 1 . . . 1 . 1 . Core 25 | . . . . . 1 . . . . . . 1 . . . . 1 . 3 2 1 2 . . . 1 5 2 6 . Reactor 19 | . . . . . . . . . . . . . . . . . . . 1 . . . . 1 . . 9 4 4 . Propulsion 112 | 2 4 1 . 1 5 . 7 2 2 . 1 . 2 . 7 1 7 1 10 4 5 5 1 . . 1 15 4 21 3 Treads 39 | 2 4 1 . 1 4 . 7 2 1 . 1 . 1 . 1 . 1 . 1 4 . 3 . . . . . . 4 1 Leg 1 | . . . . . . . . . . . . . . . . . 1 . . . . . . . . . . . . . Wheel 10 | . . . . . . . . . 1 . . . 1 . 2 . . . 3 . 1 . . . . . . . 2 . Hover 51 | . . . . . . . . . . . . . . . 4 1 1 . 1 . 4 2 1 . . 1 15 4 15 2 Flight 11 | . . . . . 1 . . . . . . . . . . . 4 1 5 . . . . . . . . . . . Utility 272 | 2 1 . 1 . 8 5 12 3 5 3 12 7 6 13 30 3 11 2 31 9 8 11 4 . 6 5 35 16 21 2 Device 89 | . . . . . 4 2 3 1 1 1 3 3 2 4 12 1 3 2 14 2 2 . 1 . 2 1 15 3 7 . Storage 24 | 2 1 . 1 . . . 1 . . . 2 . 1 . 1 1 1 . 2 1 2 . . . 2 . 1 3 2 . Processor 13 | . . . . . . . . . . . . . . . 3 . 1 . 2 . . . . . . . 4 1 2 . Hackware 56 | . . . . . . 1 1 1 1 1 1 . . 5 6 1 2 . 6 2 1 6 2 . 1 1 6 6 3 2 Protection 90 | . . . . . 4 2 7 1 3 1 6 4 3 4 8 . 4 . 7 4 3 5 1 . 1 3 9 3 7 . Artifact . | . . . . . . . . . . . . . . . . . . . . . . . . . . . . . . . Weapon 269 | 2 10 5 . 4 5 4 6 7 10 2 6 6 12 7 30 7 14 1 23 10 16 17 10 1 . 9 23 8 13 1 Energy Gun 15 | . 1 1 . . 1 1 . . . . . . . . 3 3 2 . 1 . . . . . . . . 1 1 . Energy Cannon 28 | . . . . . . . . . 1 . . . 1 . 4 . . . 6 2 . . . 1 . 2 5 3 2 1 Ballistic Gun 91 | 2 7 2 . 3 2 1 5 1 4 . 4 3 1 . 2 2 7 1 7 6 7 8 3 . . 1 8 1 3 . Ballistic Cannon 14 | . . . . . . . . 1 . . . 1 3 1 1 . 2 . . . . . 1 . . . 4 . . . Launcher 28 | . 2 2 . 1 2 2 . 1 . . . . 1 2 6 1 . . 1 . . . 1 . . 3 1 1 1 . Special Weapon 50 | . . . . . . . . . . . 1 . 2 2 8 1 3 . 6 . 4 7 3 . . 3 3 2 5 . Impact Weapon 1 | . . . . . . . . . . . . . . . 1 . . . . . . . . . . . . . . . Slashing Weapon 22 | . . . . . . . . 4 3 1 . 2 3 2 5 . . . . . . . . . . . 2 . . . Piercing Weapon 14 | . . . . . . . . . . . . . . . . . . . 2 2 5 2 2 . . . . . 1 . Special Melee Weapon 6 | . . . . . . . 1 . 2 1 1 . 1 . . . . . . . . . . . . . . . . . Unidentified Prototypes 17 | . . . . . 3 . 1 . 1 . . . . . 3 . . . 2 . . . . . . . 4 1 2 . Parts Lost 203 | . . 2 . 3 . . 2 2 . 2 2 4 1 1 21 5 15 . 10 11 5 2 8 . . 2 37 9 49 10 Power 24 | . . . . . . . . . . . 1 2 . . 3 1 1 . 1 . . . 1 . . . 5 1 6 2 Propulsion 47 | . . 1 . 1 . . . 2 . . . . 1 . 5 . 3 . 2 2 2 . . . . . 6 . 17 5 Utility 82 | . . . . . . . 2 . . 2 . . . 1 8 1 5 . 6 7 3 2 5 . . 1 16 5 17 1 Weapon 50 | . . 1 . 2 . . . . . . 1 2 . . 5 3 6 . 1 2 . . 2 . . 1 10 3 9 2 Highest Loss Streak 12 | . . 1 . 2 . . 1 1 . 2 1 2 1 1 12 5 7 . 4 9 2 1 4 . . 1 9 3 11 8 Average Slot Usage (%) 83 | . 97 99 87 83 89 90 89 87 86 74 81 81 75 73 71 76 84 70 76 81 93 99 87 75 89 93 84 92 78 56 Engine 4 | . 14 14 14 14 2 9 9 9 7 7 7 3 6 7 5 5 4 . . . . . 3 . . . . . . . Core 2 | . . . . . 6 . . . . . . 2 . . . . . 5 4 5 5 5 5 5 5 5 2 4 3 6 Treads 9 | . 27 27 28 28 26 27 27 25 12 7 7 7 7 7 4 . 4 . 2 10 6 3 1 . . . . . . . Wheel 2 | . . . . . . . . . 4 7 7 7 7 7 4 . . . 3 5 2 . . . . . . . . . Hover 4 | . . . . . . . . . . . . . . . 1 8 4 . . . 9 19 19 21 21 20 17 18 15 8 Device 8 | . . . . . 13 10 8 13 7 6 8 9 6 3 6 19 11 5 12 10 11 7 2 . 4 8 8 8 5 . Storage 10 | . 28 28 15 14 9 9 9 9 7 7 10 15 15 15 11 5 4 5 6 6 11 11 10 10 14 15 9 11 8 . Processor 2 | . . . . . . . . . . . . . . . 1 13 9 5 3 . . . . . . . 3 10 10 11 Hackware 10 | . . . . . . . 1 . 6 7 7 7 7 7 12 1 5 11 15 21 24 19 30 23 23 17 23 19 19 24 Protection 9 | . . . . . 13 16 17 12 22 13 15 11 7 7 6 6 14 5 6 6 6 16 4 . 4 8 4 2 2 . Energy Gun 1 | . 1 9 14 . 6 5 . . . . . . . . . 3 5 . . . . . . . . . . . . . Energy Cannon 1 | . . . . . . . . . 1 7 3 . . . 2 . . . 1 3 . . . 1 5 4 1 2 . 1 Ballistic Gun 6 | . 24 17 14 23 11 7 16 12 8 . 6 12 5 . . 6 2 3 2 6 4 7 4 . . . . 1 2 . Special Weapon 1 | . . . . . . . . . . . . . 2 5 3 1 1 5 3 . 2 2 2 5 5 4 2 3 2 1 Slashing Weapon 1 | . . . . . . . . 4 1 4 2 . 1 2 2 . . . . . . . . . . . 1 . . . Naked Turns 22 | . . . . . . . . . . . . . . . 22 . . . . . . . . . . . . . . . Heaviest Build 180 | 16 22 24 90 91 112 113 113 112 122 119 152 151 154 156 163 109 134 26 126 66 60 91 95 94 166 180 140 133 122 43 Greatest Support 132 | 40 40 40 40 40 60 60 60 60 60 28 28 28 28 28 39 39 70 37 56 56 128 128 128 96 128 128 128 107 132 35 Greatest Overweight (x) 28 | . . . 2 2 2 1 1 2 4 4 6 5 5 5 28 3 3 . 4 2 2 2 . . 1 1 1 1 5 3 Average Overweight (x) 1 | . . . 1 2 1 1 1 1 2 3 4 4 4 5 3 2 . . . . . . . . . 1 . . . . Largest Inventory Capacity 52 | 8 10 10 24 24 24 24 44 24 24 24 44 32 52 32 32 24 24 4 24 14 16 16 16 16 26 26 26 28 20 12 Average Capacity 22 | 5 9 10 21 24 24 24 24 24 24 24 27 32 32 32 28 21 22 4 14 9 14 16 16 16 23 26 20 20 17 5 Most Carried 32 | 8 10 10 13 16 24 24 24 24 24 24 30 32 32 32 32 9 17 4 14 14 16 16 16 16 21 26 26 20 19 12 Average Carried 18 | 4 9 9 11 12 17 22 22 21 23 20 24 29 31 31 24 7 11 3 7 8 13 15 14 15 17 23 17 19 13 4 Final Capacity 32 | 8 10 10 24 24 24 24 24 24 24 24 32 32 32 32 4 24 4 4 8 14 16 16 16 16 26 26 20 20 12 4 Final Carried 32 | 8 10 9 13 16 24 24 24 23 24 22 30 32 32 32 4 9 4 4 7 14 16 16 15 16 21 26 17 20 12 4 Class Distribution -------------------- 27% | Hauler-Mutant 25% | Botlord-Mutant 22% | Bothacker-Mutant 10% | Scavenger-Mutant 6% | Mutant 6% | Hacker-Mutant Dominant Class ---------------- Mutant | -10/Materials Mutant | -10/Mines Hauler-Mutant | -10/Exiles Hauler-Mutant | -9/Mines Hauler-Mutant | -8/Materials Hauler-Mutant | -8/Garrison Hauler-Mutant | -8/Materials Hauler-Mutant | -8/Garrison Bothacker-Mutant | -7/Factory Hauler-Mutant | -7/Waste Hauler-Mutant | -7/Factory Bothacker-Mutant | -7/Garrison Bothacker-Mutant | -7/Factory Botlord-Mutant | -7/Garrison Bothacker-Mutant | -6/Factory Scavenger-Mutant | -6/Garrison Scavenger-Mutant | -5/Factory Scavenger-Mutant | -5/Waste Hauler-Mutant | -5/Factory Hacker-Mutant | -5/Garrison Bothacker-Mutant | -5/Factory Botlord-Mutant | -5/Garrison Botlord-Mutant | -4/Factory Botlord-Mutant | -4/Waste Botlord-Mutant | -4/Factory Botlord-Mutant | -4/Garrison Botlord-Mutant | -3/Research Botlord-Mutant | -3/Garrison Botlord-Mutant | -2/Research Scavenger-Mutant | -2/Quarantine Resources | -11 -10 -10 -10 -9 -8 -8 -8 -8 -7 -7 -7 -7 -7 -7 -6 -6 -5 -5 -5 -5 -5 -5 -4 -4 -4 -4 -3 -3 -2 -2 ----------- Run | Scr Mat Min Exi Min Mat Gar Mat Gar Fac Was Fac Gar Fac Gar Fac Gar Fac Was Fac Gar Fac Gar Fac Was Fac Gar Res Gar Res Qua Matter Collected 16993 | 365 312 302 20 177 311 180 757 450 211 125 409 457 715 490 1075 292 562 . 1223 658 695 1407 350 . 159 772 1740 1213 1519 47 Remotely . | . . . . . . . . . . . . . . . . . . . . . . . . . . . . . . . Salvage Created 18669 | 135 290 314 . 165 254 123 1004 524 300 417 274 470 515 564 2230 350 899 . 1651 1087 684 779 203 . . 471 1349 550 3067 . Parts 939 | 10 16 26 . 6 8 11 43 29 14 12 10 27 25 20 105 23 43 . 79 46 46 28 11 . . 18 92 17 174 . Haulers Intercepted 4 | . . . . . . . 1 . . . 1 . . . . . . . . . 1 . 1 . . . . . . . Recyclers Shooed 7 | . 1 2 . . . . . . . . . . . . 1 . . . 1 . . . . . . . . . 2 . Parts Field Recycled . | . . . . . . . . . . . . . . . . . . . . . . . . . . . . . . . Retrieved Matter . | . . . . . . . . . . . . . . . . . . . . . . . . . . . . . . . Parts Self-Destructed . | . . . . . . . . . . . . . . . . . . . . . . . . . . . . . . . Prevented . | . . . . . . . . . . . . . . . . . . . . . . . . . . . . . . . Kills | -11 -10 -10 -10 -9 -8 -8 -8 -8 -7 -7 -7 -7 -7 -7 -6 -6 -5 -5 -5 -5 -5 -5 -4 -4 -4 -4 -3 -3 -2 -2 ------- Run | Scr Mat Min Exi Min Mat Gar Mat Gar Fac Was Fac Gar Fac Gar Fac Gar Fac Was Fac Gar Fac Gar Fac Was Fac Gar Res Gar Res Qua Combat Hostiles Destroyed 302 | . 8 7 . 13 5 10 19 14 5 1 4 14 5 11 27 9 19 . 23 11 13 12 5 . . 5 26 3 33 . Melee 27 | . . . . . . . . 1 . 1 . . . . 1 . . . 1 1 2 . . . . . 1 . 19 . Guns 145 | . 5 2 . 3 5 1 19 10 4 . 4 11 1 . 4 7 14 . 9 6 11 12 . . . . 6 1 10 . Cannons 38 | . . . . . . . . 1 1 . . 3 3 . 9 . 3 . 1 1 . . . . . 1 13 1 1 . AOE 69 | . 3 5 . 10 . 9 . 2 . . . . 1 9 10 2 . . 6 . . . 5 . . 1 4 . 2 . Classes Destroyed 21 | 3 3 1 . 1 2 . 4 . 1 2 . . . . 2 1 . . . . . 1 . . . . . . . . Worker 34 | 2 . 2 . . . . 1 . . . . . 3 . 3 . 1 . 6 . 1 . . . . . 7 . 8 . Builder 12 | . . 1 . . . . 2 . . . . . 1 . 3 . . . 2 . . . . . . . 2 . 1 . Tunneler 3 | 1 1 . . . . . . . . . . . . . . . . . . . 1 . . . . . . . . . Hauler 4 | . . . . . . . 1 . . . 1 . . . . . . . . . 1 . 1 . . . . . . . Recycler 14 | 1 1 1 . . . . . . . . . . 3 . 5 . . . 1 . . . . . . . . . 2 . Mechanic 2 | . . . . . . . . . . . . . . . 2 . . . . . . . . . . . . . . . Operator 1 | . . . . . . . 1 . . . . . . . . . . . . . . . . . . . . . . . Watcher 6 | . 1 . . . . . 2 . 1 . . . . . . . . . 2 . . . . . . . . . . . Swarmer 65 | . 3 3 . . . 7 4 4 . . . 7 . . . 5 8 . 5 . 6 1 5 . . 2 4 1 . . Grunt 89 | . 5 4 . 3 3 3 10 7 . . . 5 1 11 10 2 2 . 4 . . 7 . . . 1 1 1 9 . Brawler 2 | . . . . . . . 1 . . . . . . . . . . . . . . . . . . 1 . . . . Duelist 8 | . . . . . . . 1 2 . . . . . . 4 . . . . . 1 . . . . . . . . . Protector 1 | . . . . . . . . . . . . . . . 1 . . . . . . . . . . . . . . . Sentry 29 | . . . . . 1 . 2 1 1 . 1 1 . . 2 . 1 . 2 5 . 2 . . . 1 4 1 4 . Specialist 3 | . . . . . . . . . . . . . . . . 1 . . . 2 . . . . . . . . . . Hunter 24 | . . . . . 1 . 1 . 1 . 2 . 1 . 3 . 2 . 4 2 . . . . . . 2 . 5 . Programmer 73 | . . . . . . . . . 3 . 1 1 3 . 8 1 6 . 8 2 6 2 . . . 1 15 . 16 . Behemoth 2 | . . . . . . . . . . . . . . . . . . . . . . 1 . . . 1 . . . . Compactor 1 | . . . . . . . . . . 1 . . . . . . . . . . . . . . . . . . . . Assembled 10 | . . . . 10 . . . . . . . . . . . . . . . . . . . . . . . . . . Martyr 2 | . . . . . . . . . . 2 . . . . . . . . . . . . . . . . . . . . Best Kill Streak 17 | 2 4 3 . 10 3 3 10 4 2 1 1 2 3 4 17 7 4 . 8 2 3 5 6 . . 1 9 1 6 . Combat Bots Only 10 | . 3 3 . 10 3 3 6 4 1 1 1 2 1 4 10 7 4 . 6 2 2 5 5 . . 1 5 1 5 . Max Kills in Single Turn 6 | 1 2 2 . 3 1 3 2 1 1 1 1 1 1 2 6 2 2 . 3 1 1 1 3 . . 1 2 1 2 . Gunslinging 1 | . . . . . . . . . . . . . . . . . 1 . . . . . . . . . . . . . Exploded 3 | . 2 2 . 3 . 3 . 1 . . . . 1 2 3 2 . . 3 . . . 2 . . 1 2 . 1 . Melee 1 | . . . . . . . . 1 . 1 . . . . 1 . . . 1 1 1 . . . . . 1 . 1 . Uniques/NPCs Destroyed . | . . . . . . . . . . . . . . . . . . . . . . . . . . . . . . . Combat | -11 -10 -10 -10 -9 -8 -8 -8 -8 -7 -7 -7 -7 -7 -7 -6 -6 -5 -5 -5 -5 -5 -5 -4 -4 -4 -4 -3 -3 -2 -2 -------- Run | Scr Mat Min Exi Min Mat Gar Mat Gar Fac Was Fac Gar Fac Gar Fac Gar Fac Was Fac Gar Fac Gar Fac Was Fac Gar Res Gar Res Qua Damage Taken 42249 | . 269 256 . 535 557 73 976 459 500 237 808 1031 306 670 4867 1060 2996 . 2605 2377 1259 1580 1674 . . 945 6727 1158 6890 1434 Core 5118 | . 45 54 . 65 100 . 103 16 20 52 56 96 108 16 649 182 59 . 166 286 138 116 272 . . 21 852 180 992 474 Absorbed by Shields 656 | . . . . . . . . . . . . . . 30 . . . . 109 95 . . . . . . . . 422 . Core Remaining (%) 45 | 100 . . . 34 . . . 60 . . . . . 50 . 2 . . . . . 23 . . . 74 . 20 . . Volleys Fired 1600 | 5 41 22 . 24 16 15 65 40 24 1 28 51 40 39 140 52 74 . 95 49 64 65 46 11 19 85 220 133 133 3 Largest 2 | 2 2 2 . 2 2 2 2 2 2 1 2 2 2 1 2 2 2 . 2 2 2 2 2 1 1 1 2 1 2 1 Hottest 162 | 40 40 60 . 43 84 89 56 73 80 80 56 76 76 48 90 80 132 . 162 114 66 70 70 110 110 110 113 81 153 120 Shots Fired 2068 | 10 73 33 . 38 28 17 113 69 38 1 48 89 52 39 143 74 128 . 110 78 89 109 48 11 19 85 237 125 163 1 Gun 1191 | 10 68 29 . 28 24 11 113 62 32 . 44 80 21 2 23 69 99 . 59 54 81 92 18 . . 4 38 24 106 . Cannon 485 | . . . . . . . . 4 6 1 . 9 15 2 78 . 17 . 23 24 . . 16 6 13 45 145 76 4 1 Launcher 105 | . 5 4 . 10 4 6 . 3 . . . . 3 16 9 1 . . 7 . . . 6 . . 11 7 2 11 . Special 287 | . . . . . . . . . . . 4 . 13 19 33 4 12 . 21 . 8 17 8 5 6 25 47 23 42 . Kinetic 1166 | 10 64 11 . 28 12 3 113 66 32 . 44 89 36 4 32 43 55 . 54 54 81 92 34 . . 4 83 21 101 . Thermal 272 | . . . . . 12 8 . . 6 1 . . . . 56 14 60 . . . . . . 6 13 10 81 . 4 1 Explosive 35 | . 5 4 . 10 4 6 . 3 . . . . . . 3 . . . . . . . . . . . . . . . Electromagnetic 317 | . 4 18 . . . . . . . . . . 3 16 19 13 10 . 35 24 . . 6 . . 46 26 81 16 . Robot Hit Streak 25 | 5 17 5 . 6 17 25 16 18 18 . 15 19 9 6 21 6 19 . 11 12 6 15 8 4 4 11 13 13 13 . Robot Miss Streak 6 | 1 5 2 . 2 1 1 4 2 1 1 1 5 2 4 2 3 2 . 3 2 3 5 2 2 1 5 6 4 5 . Penetration Max 2 | . . . . . . . 1 . . . . . . . 2 1 . . 1 1 1 1 . . . . 2 . 1 . Secondary Targets 16 | . . 1 . . 2 . 2 1 . . . . . . . . 3 . 1 1 . 2 . . . . 1 . 2 . Max Gunslinging Chain 1 | . . 1 . . 1 . 1 1 . . . . . . . . 1 . 1 1 . 1 . . . . 1 . 1 . Shots Hit Robots 1547 | 7 46 20 . 22 21 9 89 52 34 57 44 63 47 15 116 38 94 . 83 65 61 64 19 8 5 37 167 73 191 . Core Hits 706 | 5 17 18 . 30 11 16 39 21 12 6 11 23 16 13 110 16 37 . 44 25 25 27 13 . . 10 62 17 82 . Critical Hits 85 | . . . . . . . 2 1 2 1 . . . . 5 2 9 . 9 3 7 2 1 . . . 9 7 25 . Critical Kills 28 | . . . . . . . . . 2 1 . . . . . . 2 . 4 1 4 1 . . . . 2 3 8 . Critical Parts Destroyed 51 | . . . . . . . 2 1 . . . . . . 5 2 6 . 5 2 3 1 1 . . . 6 3 14 . Melee Attacks 305 | . . . . . . . 4 5 6 57 1 4 15 6 28 . . . 17 13 14 18 3 . . . 31 . 83 . Impact . | . . . . . . . . . . . . . . . . . . . . . . . . . . . . . . . Slashing 140 | . . . . . . . . 5 5 48 . 4 13 6 28 . . . . . . . . . . . 31 . . . Piercing 148 | . . . . . . . . . . . . . . . . . . . 17 13 14 18 3 . . . . . 83 . Sneak Attacks 90 | . . . . . . . 4 . 1 51 1 . 9 . 6 . . . 2 . 3 . . . . . 3 . 10 . Combat Hostiles 51 | . . . . . . . . . . 46 . . . . 1 . . . . . 1 . . . . . . . 3 . Follow-up Attacks . | . . . . . . . . . . . . . . . . . . . . . . . . . . . . . . . Damage Inflicted 49198 | 75 1037 536 . 895 359 809 1760 1025 756 2544 654 1321 1320 768 5352 897 2531 . 3427 2375 2111 1876 554 246 . 1054 6104 1121 7691 . Guns 19484 | 75 499 207 . 190 358 140 1748 835 606 . 654 1171 318 . 440 796 2006 . 1347 993 1394 1831 24 . . 50 950 226 2626 . Cannons 9939 | . . . . . . . . 86 150 26 . 120 317 30 1916 . 115 . 545 521 . . 310 246 . 637 4056 726 138 . Explosions 9033 | . 531 294 . 704 . 669 . 70 . . . . 43 738 2209 101 278 . 1129 . 193 . 220 . . 367 235 169 1083 . Melee 10418 | . . . . . . . . 34 . 2518 . 30 642 . 787 . . . 340 861 524 45 . . . . 838 . 3799 . Ramming 192 | . 7 35 . 1 1 . 12 . . . . . . . . . . . 66 . . . . . . . 25 . 45 . Kinetic 19782 | 75 459 53 . 190 130 . 1748 921 606 . 654 1291 635 30 682 676 778 . 1242 993 1394 1831 334 . . 50 2198 202 2610 . Thermal 7853 | . 342 . . . 228 140 . . 150 26 . . . 39 1422 . 1293 . 325 . . . 29 246 . 435 2519 134 525 . Explosive 3633 | . 189 294 . 704 . 669 . 70 . . . . . . 1302 . 212 . . . 193 . . . . . . . . . Electromagnetic 7320 | . 40 154 . . . . . . . . . . 43 699 1159 221 248 . 1454 521 . . 191 . . 569 524 785 712 . Impact . | . . . . . . . . . . . . . . . . . . . . . . . . . . . . . . . Slashing 4849 | . . . . . . . . 34 . 2518 . 30 642 . 787 . . . . . . . . . . . 838 . . . Piercing 5569 | . . . . . . . . . . . . . . . . . . . 340 861 524 45 . . . . . . 3799 . Highest Corruption 45 | . . . . 3 . . 3 3 1 1 4 4 2 2 1 . 9 10 23 21 13 8 4 14 14 15 33 27 32 45 Average Corruption 9 | . . . . 3 . . 3 3 1 1 2 3 1 1 1 . 5 7 14 13 10 6 2 12 14 14 20 22 18 37 Corruption Purged 72 | . . . . . . . . . . . . 3 3 2 1 . 5 . 3 13 11 2 . . . . 15 13 1 . Effects 1009 | . . . . 10 . . 24 26 1 9 21 21 3 . 3 . 48 2 151 98 51 42 . 5 28 65 179 104 105 13 Message Errors 176 | . . . . 2 . . 5 4 1 5 8 7 1 . 2 . 10 . 25 20 5 9 . 1 4 12 25 12 14 4 Matter Fused 175 | . . . . . . . 8 7 . . 4 3 . . . . 9 . 31 23 11 13 . . 4 8 25 11 15 3 Heat Flow Errors 78 | . . . . 2 . . 2 3 . . 3 1 1 . . . 3 . 9 10 9 4 . . 2 6 11 6 6 . Energy Discharges 93 | . . . . . . . 4 5 . 1 3 5 . . 1 . 9 . 8 14 5 2 . 1 4 7 7 9 8 . Parts Rejected 12 | . . . . . . . . . . . . . . . . . . 1 1 . 1 . . . . 1 5 1 2 . Data Loss (minor) 79 | . . . . 4 . . 2 3 . 2 3 2 . . . . 4 . 10 11 . 8 . . 2 4 7 11 6 . Data Loss (major) 25 | . . . . . . . . . . . . . . . . . . . 5 1 2 2 . . 4 3 7 1 . . Misfires 24 | . . . . . . . . . . . . . . . . . . . 7 3 3 . . . 1 1 6 3 . . Alerts 10 | . . . . . . . . . . . . . . . . . . . 2 2 . . . 1 . . 3 1 1 . Misdirections 120 | . . . . . . . . . . . . . . . . . . 1 28 7 4 . . 2 5 11 34 11 14 3 Targeting Errors 176 | . . . . 2 . . 2 3 . 1 . 2 1 . . . 13 . 20 5 9 3 . . 1 11 41 27 34 1 Weapon Failures 41 | . . . . . . . 1 1 . . . 1 . . . . . . 5 2 2 1 . . 1 1 8 11 5 2 Overload Shots . | . . . . . . . . . . . . . . . . . . . . . . . . . . . . . . . Overflow Damage 1845 | . 85 10 . 17 . 12 . 9 . 55 . . 173 3 287 . 79 . 245 49 165 . 5 . . 26 461 . 164 . Projectiles 475 | . . . . . . . . . . . . . 13 . 153 . . . 17 1 . . 5 . . 8 278 . . . Explosions 486 | . 85 10 . 17 . 12 . 9 . . . . . 3 27 . 79 . 162 . 36 . . . . 18 . . 28 . Melee 884 | . . . . . . . . . . 55 . . 160 . 107 . . . 66 48 129 . . . . . 183 . 136 . Knockbacks 35 | . . . . . . . . 2 . . . 1 3 . 9 . . . 1 . . . 5 . . . 14 . . . Impact 1 | . . . . . . . . . . . . . . . . . . . 1 . . . . . . . . . . . Kinetic 34 | . . . . . . . . 2 . . . 1 3 . 9 . . . . . . . 5 . . . 14 . . . Secondary . | . . . . . . . . . . . . . . . . . . . . . . . . . . . . . . . Self-Inflicted Damage 1050 | . 37 31 . 31 8 . . 35 . . . . . 142 202 . 253 . 175 . . . 37 . . 15 30 23 31 . Shots 38 | . 1 1 . 2 1 . . 1 . . . . . 7 10 . 3 . 4 . . . 2 . . 2 2 1 1 . Rammed 22 | . 5 6 . 1 1 . . . . . . . . . . . . . 4 . . . . . . . 1 . 3 1 Targets Rammed 24 | . 5 7 . 1 1 . 1 . . . . . . . . . . . 4 . . . . . . . 1 . 3 1 Kicked . | . . . . . . . . . . . . . . . . . . . . . . . . . . . . . . . Crushed 2 | . . 1 . . . . 1 . . . . . . . . . . . . . . . . . . . . . . . Highest Temperature 448 | . 12 185 . 190 36 50 331 163 12 . 246 277 163 60 146 64 227 . 357 258 252 261 320 448 292 441 285 252 217 . Average Temperature 79 | . 7 68 . 29 14 19 93 73 6 . 97 52 44 14 42 33 106 . 77 87 105 128 96 141 118 137 68 52 37 . Received Heat Transfer 4481 | . 120 102 . 151 117 . 342 153 18 . 63 213 . 177 828 207 162 . 108 276 36 390 40 . . 75 222 141 540 . Effects 10 | . . . . . . . . . . . . . . . . . . . . . . 2 1 . 1 4 1 . 1 . Energy Bleed 4 | . . . . . . . . . . . . . . . . . . . . . . . 1 . . 3 . . . . Interference 5 | . . . . . . . . . . . . . . . . . . . . . . 2 . . 1 . 1 . 1 . Damage (minor) 1 | . . . . . . . . . . . . . . . . . . . . . . . . . . 1 . . . . Siege Activations . | . . . . . . . . . . . . . . . . . . . . . . . . . . . . . . . Robots Corrupted 25 | . . . . . . . . . . . . . . 2 3 . 1 . 6 3 . . . . . 3 1 4 2 . Combat Hostiles 20 | . . . . . . . . . . . . . . 2 2 . 1 . 6 3 . . . . . 3 1 1 1 . Parts Fried 58 | . . . . . . . . . . . . . . 4 9 2 6 . 18 4 . . . . . 4 1 6 4 . Impact Corruptions 2 | . . . . . . . . . . . . . . . . . . . 1 . . . . . . . . . 1 . Robots Melted 3 | . . . . . . . . . . . . . . . 1 . 1 . . . . . . . . . 1 . . . Combat Hostiles 3 | . . . . . . . . . . . . . . . 1 . 1 . . . . . . . . . 1 . . . Parts Melted 25 | . . . . . . 1 . . 2 . . . 1 . 3 1 11 . 2 . . . . . . . 4 . . . Heat Transferred 8497 | . 250 . . . 407 259 . . 300 50 . . . 50 1950 . 1937 . 200 . . . 50 150 . 248 2085 100 461 . Parts Sabotaged 4 | . . . . . . . . . . . . . . . 4 . . . . . . . . . . . . . . . Parts Stolen . | . . . . . . . . . . . . . . . . . . . . . . . . . . . . . . . Parts Stripped . | . . . . . . . . . . . . . . . . . . . . . . . . . . . . . . . Power Chain Reactions 16 | . 1 . . . . . . . . . . . . 1 1 . 1 . . . . . 4 . . 2 1 2 3 . Missiles Intercepted . | . . . . . . . . . . . . . . . . . . . . . . . . . . . . . . . Alert | -11 -10 -10 -10 -9 -8 -8 -8 -8 -7 -7 -7 -7 -7 -7 -6 -6 -5 -5 -5 -5 -5 -5 -4 -4 -4 -4 -3 -3 -2 -2 ------- Run | Scr Mat Min Exi Min Mat Gar Mat Gar Fac Was Fac Gar Fac Gar Fac Gar Fac Was Fac Gar Fac Gar Fac Was Fac Gar Res Gar Res Qua Peak Influence 1615 | 20 363 235 . 70 115 488 296 679 432 54 465 586 307 500 971 814 536 180 493 562 631 1026 580 216 214 209 465 364 329 1615 Initial 679 | . 13 70 . . 27 53 237 83 356 39 . 56 307 28 262 679 427 180 126 167 294 640 538 171 151 16 117 69 201 147 Average 256 | 5 156 103 . 3 31 259 183 364 208 17 114 315 135 374 304 769 305 180 201 341 424 793 542 208 133 95 206 224 153 1556 Maximum Alert Level 5 | . 1 1 . . . 2 1 2 2 . 2 2 1 2 3 3 2 . 2 2 2 3 2 1 1 1 2 1 1 5 Low Security (%) 48 | 100 75 82 . 100 100 24 55 17 51 100 76 27 75 8 59 . 8 100 63 1 . . . 14 80 96 53 42 67 . Level 1 28 | . 24 17 . . . 62 44 41 44 . 12 35 24 37 . . 66 . 15 72 38 . 5 85 19 3 41 57 32 . Level 2 16 | . . . . . . 12 . 40 4 . 11 36 . 54 18 16 24 . 20 25 61 19 94 . . . 4 . . . Level 3 6 | . . . . . . . . . . . . . . . 21 83 . . . . . 80 . . . . . . . . Level 4 . | . . . . . . . . . . . . . . . . . . . . . . . . . . . . . . . Level 5 . | . . . . . . . . . . . . . . . . . . . . . . . . . . . . . . . High Security . | . . . . . . . . . . . . . . . . . . . . . . . . . . . . . . . Max Security . | . . . . . . . . . . . . . . . . . . . . . . . . . . . . . . 99 Squads Dispatched 103 | . 1 . . . 2 . 5 . 5 . 5 . 4 . 21 . 6 . 6 . 10 . 5 . 1 . 9 . 16 7 Investigation 7 | . 1 . . . . . . . 1 . . . . . . . . . . . . . . . . . 1 . 4 . Extermination 39 | . . . . . . . . . 3 . 3 . 4 . 8 . 3 . 3 . 4 . 1 . 1 . 5 . 4 . Reinforcement 25 | . . . . . 2 . 2 . 1 . 2 . . . 6 . . . 3 . 1 . 2 . . . . . 5 1 Assault 14 | . . . . . . . . . . . . . . . 4 . . . . . 2 . 2 . . . . . . 6 Garrison 18 | . . . . . . . 3 . . . . . . . 3 . 3 . . . 3 . . . . . 3 . 3 . Intercept . | . . . . . . . . . . . . . . . . . . . . . . . . . . . . . . . Construction Impeded 4 | . . . . . . . . . . . . . . . 2 . . . 1 . 1 . . . . . . . . . Haulers Reinforced 5 | . . . . . . . . . . . . . . . 1 . . . 1 . . . 1 . . . . . 2 . Alert ID Control Effect 34 | . . . . . . . . . . . . . . 2 9 3 . . . . 1 2 . . 1 3 3 7 3 . Stealth | -11 -10 -10 -10 -9 -8 -8 -8 -8 -7 -7 -7 -7 -7 -7 -6 -6 -5 -5 -5 -5 -5 -5 -4 -4 -4 -4 -3 -3 -2 -2 --------- Run | Scr Mat Min Exi Min Mat Gar Mat Gar Fac Was Fac Gar Fac Gar Fac Gar Fac Was Fac Gar Fac Gar Fac Was Fac Gar Res Gar Res Qua Distress Signals 16 | . . . . . 1 . 3 . 1 . 1 . . . . . 2 . 1 . 2 . 4 . . . . . 1 . Communications Jammed 315 | . . . . . . . . . . . . . . . 36 . 76 . 43 . . . 27 . . . 41 . 91 1 Distress Signals 314 | . . . . . . . . . . . . . . . 36 . 76 . 43 . . . 27 . . . 40 . 91 1 Times Spotted 650 | . 15 7 . 14 12 9 31 21 6 6 11 19 16 23 73 15 41 4 35 15 34 26 19 5 1 28 65 26 66 7 Peak Tracking Total 13 | . 5 3 . 11 4 3 6 6 5 4 4 5 3 5 11 12 12 4 6 5 13 5 10 4 1 7 6 3 7 9 Tactical Retreats 53 | . 3 . . . 2 1 . 3 1 . . 3 . 3 7 . 1 . 3 3 . 1 4 1 . 1 7 1 8 . Traps | -11 -10 -10 -10 -9 -8 -8 -8 -8 -7 -7 -7 -7 -7 -7 -6 -6 -5 -5 -5 -5 -5 -5 -4 -4 -4 -4 -3 -3 -2 -2 ------- Run | Scr Mat Min Exi Min Mat Gar Mat Gar Fac Was Fac Gar Fac Gar Fac Gar Fac Was Fac Gar Fac Gar Fac Was Fac Gar Res Gar Res Qua Traps Triggered 84 | . 4 . . . . 5 . 3 3 . 3 13 . 7 2 4 1 . 7 7 . 4 2 . . 7 4 3 4 1 Indirectly 6 | . . . . . . . . . . . . . . 3 . . . . . . . . . . . 3 . . . . Trap Hack Attempts 30 | . . . . . . . . . 30 . . . . . . . . . . . . . . . . . . . . . Triggered . | . . . . . . . . . . . . . . . . . . . . . . . . . . . . . . . Disarmed 2 | . . . . . . . . . 2 . . . . . . . . . . . . . . . . . . . . . Reprogrammed . | . . . . . . . . . . . . . . . . . . . . . . . . . . . . . . . Reused . | . . . . . . . . . . . . . . . . . . . . . . . . . . . . . . . Traps Extracted . | . . . . . . . . . . . . . . . . . . . . . . . . . . . . . . . Installed . | . . . . . . . . . . . . . . . . . . . . . . . . . . . . . . . Triggered 1 | . . . . . . . . . . . . . . 1 . . . . . . . . . . . . . . . . Power Sources Rigged 54 | . . . . . 15 4 5 5 2 . 1 10 1 4 7 . . . . . . . . . . . . . . . Exploded 33 | . . . 1 . 3 4 1 6 1 . . 5 2 5 5 . . . . . . . . . . . . . . . Machines | -11 -10 -10 -10 -9 -8 -8 -8 -8 -7 -7 -7 -7 -7 -7 -6 -6 -5 -5 -5 -5 -5 -5 -4 -4 -4 -4 -3 -3 -2 -2 ---------- Run | Scr Mat Min Exi Min Mat Gar Mat Gar Fac Was Fac Gar Fac Gar Fac Gar Fac Was Fac Gar Fac Gar Fac Was Fac Gar Res Gar Res Qua Machines Disabled 62 | . 4 3 . . 1 2 1 4 . . . 3 . 4 6 1 3 . 3 2 12 4 2 . . 3 . 4 . . Max in Single Turn 4 | . 3 2 . . 1 1 1 1 . . . 1 . 1 1 1 2 . 2 1 4 1 1 . . 1 . 1 . . Garrison Access 2 | . . . . . . . . . . . . . . . . . 1 . 1 . . . . . . . . . . . Garrison Relay 25 | . . . . . . 2 . 4 . . . 3 . 3 . 1 . . . 2 . 4 . . . 3 . 3 . . Machines Sabotaged . | . . . . . . . . . . . . . . . . . . . . . . . . . . . . . . . Garrisons Compromised . | . . . . . . . . . . . . . . . . . . . . . . . . . . . . . . . Overloaded Fab Kills . | . . . . . . . . . . . . . . . . . . . . . . . . . . . . . . . Fab Network Shutdowns 4 | . . . . . . . . . . . 1 . . . 1 . . . 1 . 1 . . . . . . . . . Hacking | -11 -10 -10 -10 -9 -8 -8 -8 -8 -7 -7 -7 -7 -7 -7 -6 -6 -5 -5 -5 -5 -5 -5 -4 -4 -4 -4 -3 -3 -2 -2 --------- Run | Scr Mat Min Exi Min Mat Gar Mat Gar Fac Was Fac Gar Fac Gar Fac Gar Fac Was Fac Gar Fac Gar Fac Was Fac Gar Res Gar Res Qua Machines Accessed 93 | . 3 . 2 . 8 . 6 . 9 . 6 . 6 . 8 . 5 . 9 . 3 . 2 . 5 . 15 . 6 . Terminals 43 | . 3 . . . 5 . 4 . 4 . 1 . 3 . 2 . 3 . 4 . . . . . 2 . 9 . 3 . Fabricators 14 | . . . . . . . . . . . 1 . 2 . 3 . . . 1 . 2 . 1 . 1 . 2 . 1 . Repair Stations 10 | . . . . . 1 . 1 . 3 . 1 . . . 1 . . . 1 . . . . . . . 1 . 1 . Recycling Units 1 | . . . . . . . . . . . . . . . 1 . . . . . . . . . . . . . . . Scanalyzers 10 | . . . . . 1 . . . 1 . 2 . . . . . 1 . 1 . . . 1 . 1 . 2 . . . Garrison Access 13 | . . . . . 1 . 1 . 1 . 1 . 1 . 1 . 1 . 2 . 1 . . . 1 . 1 . 1 . Total Hacks 297 | . 10 . 2 . 32 . 19 . 23 . 25 . 14 . 21 . 10 . 29 . 15 . 10 . 16 . 57 . 14 . Successful 147 | . 7 . 2 . 21 . 13 . 11 . 17 . 6 . 10 . 4 . 16 . 7 . 9 . 5 . 17 . 2 . Failed 149 | . 3 . . . 10 . 6 . 12 . 8 . 8 . 11 . 6 . 13 . 8 . 1 . 11 . 40 . 12 . Catastrophic 26 | . 1 . . . . . . . 2 . . . 1 . 2 . . . 5 . 3 . . . 1 . 8 . 3 . Database Lockouts 1 | . . . . . 1 . . . . . . . . . . . . . . . . . . . . . . . . . Manual 100 | . 7 . 1 . 18 . 10 . 6 . 10 . 3 . 5 . 5 . 5 . 5 . . . 1 . 21 . 3 . Terminals 146 | . 10 . . . 20 . 16 . 12 . 8 . 6 . 5 . 6 . 19 . . . . . 3 . 33 . 8 . Fabricators 54 | . . . . . . . . . . . 4 . 7 . 8 . . . 2 . 14 . 3 . 3 . 11 . 2 . Repair Stations 30 | . . . . . 2 . 2 . 8 . 3 . . . 5 . . . 4 . . . . . . . 4 . 2 . Recycling Units 2 | . . . . . . . . . . . . . . . 2 . . . . . . . . . . . . . . . Scanalyzers 49 | . . . . . 9 . . . 2 . 9 . . . . . 3 . 2 . . . 7 . 9 . 8 . . . Garrison Access 14 | . . . . . 1 . 1 . 1 . 1 . 1 . 1 . 1 . 2 . 1 . . . 1 . 1 . 2 . Terminal Hacks 43 | . 5 . 2 . 6 . 8 . 3 . . . 1 . 1 . 1 . 7 . . . . . 1 . 6 . 2 . Record 2 | . . . 1 . . . . . . . . . . . . . . . 1 . . . . . . . . . . . Robot Analysis 1 | . . . . . 1 . . . . . . . . . . . . . . . . . . . . . . . . . Prototype ID Bank 1 | . . . . . . . . . . . . . . . . . . . 1 . . . . . . . . . . . Open Door 2 | . . . . . . . . . . . . . . . . . 1 . 1 . . . . . . . . . . . Branch Access Points 3 | . 1 . . . . . 1 . 1 . . . . . . . . . . . . . . . . . . . . . Emergency Access Points 4 | . . . . . 1 . 1 . 1 . . . . . . . . . . . . . . . . . 1 . . . Terminal Index 1 | . . . . . . . . . . . . . . . . . . . . . . . . . . . 1 . . . Scanalyzer Index 1 | . . . . . . . . . . . . . . . . . . . . . . . . . . . . . 1 . Unreport Threat 2 | . . . . . . . . . . . . . . . . . . . 2 . . . . . . . . . . . Locate Traps 10 | . 1 . . . . . 2 . 1 . . . 1 . . . . . 1 . . . . . 1 . 2 . 1 . Hauler Manifests 3 | . 1 . . . 1 . 1 . . . . . . . . . . . . . . . . . . . . . . . Zone Layout 12 | . 2 . . . 3 . 3 . . . . . . . 1 . . . 1 . . . . . . . 2 . . . EX-Prototype ID Bank 1 | . . . 1 . . . . . . . . . . . . . . . . . . . . . . . . . . . Fabricator Hacks 23 | . . . . . . . . . . . 2 . 4 . 3 . . . 2 . 5 . 2 . 2 . 3 . . . Load Schematic 11 | . . . . . . . . . . . 1 . 2 . 1 . . . 1 . 2 . 1 . 1 . 2 . . . Build 12 | . . . . . . . . . . . 1 . 2 . 2 . . . 1 . 3 . 1 . 1 . 1 . . . Repair Station Hacks 13 | . . . . . 1 . 2 . 3 . 2 . . . 1 . . . 3 . . . . . . . 1 . . . Scan Component 10 | . . . . . 1 . 1 . 3 . 1 . . . 1 . . . 2 . . . . . . . 1 . . . Repair 3 | . . . . . . . 1 . . . 1 . . . . . . . 1 . . . . . . . . . . . Recycling Unit Hacks . | . . . . . . . . . . . . . . . . . . . . . . . . . . . . . . . Scanalyzer 31 | . . . . . 8 . . . 2 . 7 . . . . . 1 . 2 . . . 7 . 1 . 3 . . . Insert Component 17 | . . . . . 4 . . . 1 . 4 . . . . . 1 . 1 . . . 3 . 1 . 2 . . . Analyze 14 | . . . . . 4 . . . 1 . 3 . . . . . . . 1 . . . 4 . . . 1 . . . Garrison Access Hacks 12 | . . . . . 1 . 1 . 1 . 1 . 1 . 1 . 1 . 2 . 1 . . . 1 . 1 . . . Unlock Access 10 | . . . . . 1 . 1 . 1 . 1 . 1 . 1 . . . 1 . 1 . . . 1 . 1 . . . Seal Access 2 | . . . . . . . . . . . . . . . . . 1 . 1 . . . . . . . . . . . Unauthorized Hacks 25 | . 2 . . . 5 . 2 . 2 . 5 . . . 4 . 1 . . . 1 . . . . . 3 . . . Terminals 19 | . 2 . . . 5 . 2 . 2 . 3 . . . 1 . 1 . . . . . . . . . 3 . . . Track 7 | . 1 . . . 3 . 1 . . . 1 . . . . . . . . . . . . . . . 1 . . . Assimilate 2 | . 1 . . . 1 . . . . . . . . . . . . . . . . . . . . . . . . . Botnet 4 | . . . . . . . . . 1 . 1 . . . 1 . . . . . . . . . . . 1 . . . Operators 6 | . . . . . 1 . 1 . 1 . 1 . . . . . 1 . . . . . . . . . 1 . . . Fabricators 6 | . . . . . . . . . . . 2 . . . 3 . . . . . 1 . . . . . . . . . Prioritize 2 | . . . . . . . . . . . 1 . . . 1 . . . . . . . . . . . . . . . Siphon 3 | . . . . . . . . . . . 1 . . . 1 . . . . . 1 . . . . . . . . . Haulers 1 | . . . . . . . . . . . . . . . 1 . . . . . . . . . . . . . . . Repair Stations . | . . . . . . . . . . . . . . . . . . . . . . . . . . . . . . . Recycling Units . | . . . . . . . . . . . . . . . . . . . . . . . . . . . . . . . Scanalyzers . | . . . . . . . . . . . . . . . . . . . . . . . . . . . . . . . Garrison Access . | . . . . . . . . . . . . . . . . . . . . . . . . . . . . . . . Data Cores Recovered . | . . . . . . . . . . . . . . . . . . . . . . . . . . . . . . . Used . | . . . . . . . . . . . . . . . . . . . . . . . . . . . . . . . Hacking Detections 74 | . 3 . . . 8 . 3 . 8 . 4 . 5 . 7 . 3 . 5 . 2 . 1 . 4 . 15 . 6 . Full Trace Events 6 | . 1 . . . . . . . . . . . . . . . . . . . . . . . . . 1 . 4 . Feedback Events 1 | . . . . . . . . . . . . . . . . . . . . . . . . . . . . . 1 . Corruption 1 | . . . . . . . . . . . . . . . . . . . . . . . . . . . . . 1 . Feedback Blocked . | . . . . . . . . . . . . . . . . . . . . . . . . . . . . . . . Robot Schematics Acquired . | . . . . . . . . . . . . . . . . . . . . . . . . . . . . . . . Robots Built . | . . . . . . . . . . . . . . . . . . . . . . . . . . . . . . . Matter . | . . . . . . . . . . . . . . . . . . . . . . . . . . . . . . . Time . | . . . . . . . . . . . . . . . . . . . . . . . . . . . . . . . Total Robot Build Rating . | . . . . . . . . . . . . . . . . . . . . . . . . . . . . . . . Part Schematics Acquired 12 | . . . . . 4 . . . . . 3 . . . . . . . 1 . . . 3 . . . 1 . . . Parts Built 18 | . . . . . . . . . . . 1 . 2 . 4 . . . 1 . 6 . 1 . 1 . 2 . . . Matter 1982 | . . . . . . . . . . . 76 . 204 . 380 . . . 102 . 694 . 146 . 102 . 278 . . . Time 728 | . . . . . . . . . . . 25 . 50 . 148 . . . 51 . 347 . 36 . 25 . 46 . . . Total Part Build Rating 100 | . . . . . . . . . . . 1 . 2 . 20 . . . 1 . 54 . 3 . 1 . 18 . . . Parts Repaired 3 | . . . . . . . 1 . . . 1 . . . . . . . 1 . . . . . . . . . . . Time 197 | . . . . . . . 100 . . . 53 . . . . . . . 44 . . . . . . . . . . . Parts Recycled . | . . . . . . . . . . . . . . . . . . . . . . . . . . . . . . . Recycled Matter . | . . . . . . . . . . . . . . . . . . . . . . . . . . . . . . . Retrieved Matter . | . . . . . . . . . . . . . . . . . . . . . . . . . . . . . . . Retrieved Components . | . . . . . . . . . . . . . . . . . . . . . . . . . . . . . . . Parts Scanalyzed 14 | . . . . . 4 . . . 1 . 3 . . . . . . . 1 . . . 3 . 1 . 1 . . . Part Schematics Acquired 12 | . . . . . 4 . . . . . 3 . . . . . . . 1 . . . 3 . . . 1 . . . Parts Damaged 2 | . . . . . 1 . . . . . . . . . . . . . 1 . . . . . . . . . . . Bothacking | -11 -10 -10 -10 -9 -8 -8 -8 -8 -7 -7 -7 -7 -7 -7 -6 -6 -5 -5 -5 -5 -5 -5 -4 -4 -4 -4 -3 -3 -2 -2 ------------ Run | Scr Mat Min Exi Min Mat Gar Mat Gar Fac Was Fac Gar Fac Gar Fac Gar Fac Was Fac Gar Fac Gar Fac Was Fac Gar Res Gar Res Qua Used RIF Installer 8 | . . . . . . 1 . 1 . . . 1 . 1 . . . . . 1 . 1 . . . 1 . 1 . . Coupler Efficiency 1 | . . . . . . . . . . . . . . . . . . . . . . 1 . . . . . . . . Hotswap 1 | . . . . . . . . . . . . . . . . . . . . 1 . . . . . . . . . . Command Fork 1 | . . . . . . . . . . . . . . . . . . . . . . . . . . . . 1 . . Signal Jammer 1 | . . . . . . . . . . . . . . 1 . . . . . . . . . . . . . . . . Robot Detection 1 | . . . . . . . . 1 . . . . . . . . . . . . . . . . . . . . . . Alert ID Control 1 | . . . . . . . . . . . . 1 . . . . . . . . . . . . . . . . . . Autooverride 1 | . . . . . . . . . . . . . . . . . . . . . . . . . . 1 . . . . Robots Hacked 151 | . . . . . . . 1 . 1 6 2 . 5 10 14 3 3 . 10 . 5 10 4 4 3 15 19 15 20 1 Non-combat 59 | . . . . . . . 1 . 1 . 2 . 5 . 11 . 3 . 10 . 1 . 4 . 2 . 10 . 9 . Combat 92 | . . . . . . . . . . 6 . . . 10 3 3 . . . . 4 10 . 4 1 15 9 15 11 1 Autooverrided 9 | . . . . . . . . . . . . . . . . . . . . . . . . . . 1 2 2 3 1 Robot Hacks Applied 199 | . . . . . . . 4 . 1 9 3 . 9 12 25 3 3 . 17 . 5 10 5 5 4 18 30 13 23 . parse_system 5 | . . . . . . . . . . . . . 1 1 1 . . . . . 1 . . . . . . 1 . . no_distress 6 | . . . . . . . . . . . . . . . 3 . . . 1 . . . . . 1 . . . 1 . generate_echo 1 | . . . . . . . . . . . . . . . . . . . . . . . . . . . 1 . . . find_chute 4 | . . . . . . . . . 1 . . . . . 1 . 1 . . . . . 1 . . . . . . . deconstruct_machine 1 | . . . . . . . . . . . . . . . . . . . . . . . . . . . 1 . . . map_walls 6 | . . . . . . . . . . . . . . . . . . . 2 . . . . . . . . . 4 . randomize_corridors 1 | . . . . . . . . . . . . . . . . . . . . . . . . . . . 1 . . . map_earth 3 | . . . . . . . . . . . . . 1 . . . . . . . . . . . 1 . 1 . . . find_fabricator 5 | . . . . . . . . . . . . . 1 . 1 . . . 2 . . . 1 . . . . . . . drop_inventory 14 | . . . . . . . . . . . . . 2 . 3 . 1 . 3 . . . 2 . 1 . 1 . 1 . find_recycling 8 | . . . . . . . . . . . . . 1 . 2 . 1 . 1 . . . . . . . 2 . 1 . ignore_parts 3 | . . . . . . . . . . . . . . . . . . . 2 . . . . . . . 1 . . . purge_threat 16 | . . . . . . . 2 . . . 2 . 1 . 3 . . . 3 . . . . . . . 4 . 1 . locate_traps 1 | . . . . . . . . . . . . . . . 1 . . . . . . . . . . . . . . . disarm_traps 7 | . . . . . . . 1 . . . . . 1 . 2 . . . . . . . . . . . 3 . . . block_reporting 4 | . . . . . . . . . . . . . 1 . 1 . . . . . . . . . . . 1 . 1 . summon_haulers 1 | . . . . . . . 1 . . . . . . . . . . . . . . . . . . . . . . . recall_investigation 1 | . . . . . . . . . . . . . . . . . . . . . . . . . . . . . 1 . map_route 7 | . . . . . . . . . . . . . . . 1 . . . 1 . . . 1 . . . 3 . 1 . relay_feed 1 | . . . . . . . . . . . . . . . . . . . . . . . . . . . . . 1 . ignore_targets 13 | . . . . . . . . . . 9 . . . . . . . . . . . . . 4 . . . . . . link_fov 1 | . . . . . . . . . . . . . . . . . . . 1 . . . . . . . . . . . scatter_targeting 5 | . . . . . . . . . . . . . . . . . . . . . . . . . . . . 2 3 . overload_power 4 | . . . . . . . . . . . . . . 1 . . . . . . . 1 . 1 . . . 1 . . amplify_resonance 1 | . . . . . . . . . . . . . . . . . . . . . . . . . . . . . 1 . disable_weapons 2 | . . . . . . . . . . . . . . 1 . . . . . . . . . . . . . . 1 . go_dormant 3 | . . . . . . . . . . . . . . . 1 . . . . . 1 . . . . . 1 . . . overwrite_iff 29 | . . . . . . . . . . . . . . 1 1 2 . . . . 2 6 . . . 10 3 1 3 . streamctrl_high 2 | . . . . . . . . . . . . . . . . 1 . . . . . . . . . . 1 . . . formatsys_low 7 | . . . . . . . . . . . 1 . . . 3 . . . 1 . . . . . . . 1 . 1 . formatsys_high 37 | . . . . . . . . . . . . . . 8 1 . . . . . 1 3 . . 1 8 5 8 2 . Relay Couplers Released 101 | . . . . . . 9 . 14 . . . 11 . 12 . 4 . . . 8 . 16 . . . 13 3 11 . . Machine Destruction 98 | . . . . . . 9 . 14 . . . 11 . 12 . 4 . . . 8 . 16 . . . 13 . 11 . . Programmers 3 | . . . . . . . . . . . . . . . . . . . . . . . . . . . 3 . . . Attached 47 | . . . . . . 1 1 1 1 1 1 . . 5 5 1 2 . 1 2 1 6 . . 1 1 5 6 3 2 Robots Rewired 1 | . . . . . . . . . . . . . . . . . . . . . . . . . . . . . 1 . Allies Hacked 1 | . . . . . . . . . . . 1 . . . . . . . . . . . . . . . . . . . Hacks Repelled . | . . . . . . . . . . . . . . . . . . . . . . . . . . . . . . . Allies | -11 -10 -10 -10 -9 -8 -8 -8 -8 -7 -7 -7 -7 -7 -7 -6 -6 -5 -5 -5 -5 -5 -5 -4 -4 -4 -4 -3 -3 -2 -2 -------- Run | Scr Mat Min Exi Min Mat Gar Mat Gar Fac Was Fac Gar Fac Gar Fac Gar Fac Was Fac Gar Fac Gar Fac Was Fac Gar Res Gar Res Qua Total Allies 97 | . . . . . . . . . . 18 1 . . 9 5 3 . . 1 . 3 9 . . 1 15 10 11 10 1 Largest Group 18 | . . . . . . . . . . 18 10 . . 5 6 3 . . 1 . 1 2 . . 1 4 4 5 3 1 Highest-Rated Group 456 | . . . . . . . . . . 456 290 . . 144 186 87 . . 26 . 29 58 . . 49 97 241 253 142 69 Highest-Rated Ally 69 | . . . . . . . . . . 35 33 . . 32 32 29 . . 26 . 29 30 . . 49 47 64 56 69 69 Total Orders 10 | . . . . . . . . . . . . . . 4 5 . . . . . . . . . . 1 . . . . STAY 4 | . . . . . . . . . . . . . . 2 2 . . . . . . . . . . . . . . . ROAM 1 | . . . . . . . . . . . . . . . . . . . . . . . . . . 1 . . . . FOLLOW 5 | . . . . . . . . . . . . . . 2 3 . . . . . . . . . . . . . . . Ally Attacks 477 | . . . . . . . . . . 84 20 . . 18 40 15 . . . . 7 29 . . 4 66 28 113 51 2 Total Damage 12641 | . . . . . . . . . . 3100 323 . . 283 1280 150 . . . . 86 423 . . 140 820 562 3879 1499 96 Kills 54 | . . . . . . . . . . 11 1 . . 2 9 3 . . . . 1 2 . . 1 4 3 14 3 . Allies Corrupted 6 | . . . . . . . . . . . 3 . . . . . . . . . . . . . . . 1 1 . 1 Allies Melted . | . . . . . . . . . . . . . . . . . . . . . . . . . . . . . . . Intel | -11 -10 -10 -10 -9 -8 -8 -8 -8 -7 -7 -7 -7 -7 -7 -6 -6 -5 -5 -5 -5 -5 -5 -4 -4 -4 -4 -3 -3 -2 -2 ------- Run | Scr Mat Min Exi Min Mat Gar Mat Gar Fac Was Fac Gar Fac Gar Fac Gar Fac Was Fac Gar Fac Gar Fac Was Fac Gar Res Gar Res Qua Robot Analysis Total 1 | . . . . . 1 . . . . . . . . . . . . . . . . . . . . . . . . . Derelict Logs Recovered 3 | . . 1 . 2 . . . . . . . . . . . . . . . . . . . . . . . . . . Drone Launches . | . . . . . . . . . . . . . . . . . . . . . . . . . . . . . . . Drone Recoveries . | . . . . . . . . . . . . . . . . . . . . . . . . . . . . . . . Exploration | -11 -10 -10 -10 -9 -8 -8 -8 -8 -7 -7 -7 -7 -7 -7 -6 -6 -5 -5 -5 -5 -5 -5 -4 -4 -4 -4 -3 -3 -2 -2 ------------- Run | Scr Mat Min Exi Min Mat Gar Mat Gar Fac Was Fac Gar Fac Gar Fac Gar Fac Was Fac Gar Fac Gar Fac Was Fac Gar Res Gar Res Qua Turns Passed 39123 | 141 631 842 945 667 1732 928 1299 1529 1884 1411 1848 1188 1615 1847 3290 950 1873 33 2365 2171 1017 1210 445 88 565 1135 2481 1087 1780 126 Spaces Moved 22607 | 72 282 465 472 292 845 465 536 701 966 589 897 579 903 988 1873 403 815 66 2303 610 804 772 444 92 356 569 2250 956 1116 126 Core 184 | 5 . . . . . . . . . . . . . . 151 . . . . . . . . . . . . . . 28 Treads 6550 | 67 282 465 472 292 845 465 536 701 488 404 277 . . 132 12 . 741 . . 311 1 2 . . . . . . 50 7 Legs . | . . . . . . . . . . . . . . . . . . . . . . . . . . . . . . . Wheels 6369 | . . . . . . . . . 478 185 620 579 903 856 1365 . . . 725 299 307 . . . . . . . 52 . Hover 7810 | . . . . . . . . . . . . . . . 345 403 24 . . . 496 770 444 92 356 569 2250 956 1014 91 Flight 1694 | . . . . . . . . . . . . . . . . . 50 66 1578 . . . . . . . . . . . Fastest Speed 31 | 50 160 160 160 200 180 183 183 183 130 140 140 140 140 150 50 60 31 31 34 100 48 48 48 52 52 148 48 63 48 50 Average Speed 128 | 152 160 160 191 200 180 183 183 186 170 206 186 140 149 164 137 163 171 32 65 143 81 106 57 52 136 148 64 66 91 85 Slowest Speed 1450 | 160 160 160 200 200 200 183 183 205 240 240 290 150 150 260 1450 210 290 34 140 200 200 200 72 52 152 152 156 151 240 200 Overloaded Moves . | . . . . . . . . . . . . . . . . . . . . . . . . . . . . . . . Propulsion Burnouts . | . . . . . . . . . . . . . . . . . . . . . . . . . . . . . . . Robots Hopped 18 | . . . . . . . . . . . . . . . . . 6 3 9 . . . . . . . . . . . Cave-ins Triggered . | . . . . . . . . . . . . . . . . . . . . . . . . . . . . . . . Exploration Rate (%) 47 | 4 50 97 74 63 58 68 34 65 22 89 19 78 18 74 28 45 13 54 45 59 9 86 14 74 8 73 51 67 20 19 Regions Visited 30 Branch Regions 4 Pre-discovered Areas 2 | . . . 1 1 . . . . . . . . . . . . . . . . . . . . . . . . . . Known Exits Taken 10 | . 1 . . . 1 . 1 . . . 1 . 1 . 1 . . . 1 . 1 . . . 1 . 1 . . . Unknown Exits Taken 5 | 1 . 1 1 1 . . . . . . . . . . . . . . . . . . . . . . . . 1 . Scrap Searched 4 | . . 2 . 2 . . . . . . . . . . . . . . . . . . . . . . . . . . Spaces Dug 198 | . 7 . . 15 24 21 . . 5 . . . 8 . 22 1 9 . 10 . 4 7 12 . 8 10 23 10 1 1 Terrain Destroyed 679 | . 51 23 . 37 49 31 . 24 5 . . . 9 2 77 4 51 . 39 2 98 17 24 . 13 13 64 19 26 1 Melee 54 | . . . . . . . . . 5 . . . 5 . 13 . . . 10 . 4 7 3 . . . 6 . 1 . Projectile 150 | . . . . . . . . . . . . . 4 . 15 4 17 . 5 2 10 10 14 . 13 3 49 . 3 1 AOE 475 | . 51 23 . 37 49 31 . 24 . . . . . 2 49 . 34 . 24 . 84 . 7 . . 10 9 19 22 . Terrain Rammed . | . . . . . . . . . . . . . . . . . . . . . . . . . . . . . . . Walls Destroyed . | . . . . . . . . . . . . . . . . . . . . . . . . . . . . . . . Machines Disabled . | . . . . . . . . . . . . . . . . . . . . . . . . . . . . . . . Actions | -11 -10 -10 -10 -9 -8 -8 -8 -8 -7 -7 -7 -7 -7 -7 -6 -6 -5 -5 -5 -5 -5 -5 -4 -4 -4 -4 -3 -3 -2 -2 --------- Run | Scr Mat Min Exi Min Mat Gar Mat Gar Fac Was Fac Gar Fac Gar Fac Gar Fac Was Fac Gar Fac Gar Fac Was Fac Gar Res Gar Res Qua Total 30186 | 91 392 528 512 340 1028 527 774 869 1170 704 1027 859 1097 1168 2406 618 1143 74 3020 1803 1051 1036 582 123 417 792 3026 1297 1573 139 Wait 3780 | . 26 22 29 13 79 5 98 85 95 46 59 65 92 52 231 89 192 2 408 1065 126 100 66 18 28 59 369 119 142 . Move 22551 | 71 281 464 471 291 844 464 536 700 966 588 896 578 903 987 1872 402 805 60 2284 609 804 771 444 91 356 568 2249 955 1115 126 Hop 15 | . . . . . . . . . . . . . . . . . 4 2 9 . . . . . . . . . . . Pick Up 349 | 8 11 4 9 6 29 9 17 7 13 2 14 18 10 13 21 10 20 2 24 13 5 18 3 1 6 11 17 14 12 2 Fast Attach 251 | 7 8 . 1 . 4 2 1 2 1 1 4 1 6 3 24 4 15 3 31 10 8 9 4 1 4 5 38 18 32 4 Attach 174 | . 1 2 . 3 4 . 7 2 3 1 6 4 2 4 21 4 9 1 14 5 2 3 4 . 1 2 30 8 29 2 Detach 47 | . . . . . 1 . 1 1 1 . 2 1 . . 5 . . . 8 . 1 . 1 . . . 11 2 12 . Swap 289 | . 8 4 . 2 12 7 17 8 13 3 10 9 13 14 27 4 10 . 23 10 20 23 8 1 1 9 20 8 5 . Drop 324 | . 11 3 2 . 23 11 22 8 16 5 6 14 15 14 29 1 14 4 31 7 7 23 3 . 2 5 26 14 7 1 Fire 1600 | 5 41 22 . 24 16 15 65 40 24 1 28 51 40 39 140 52 74 . 95 49 64 65 46 11 19 85 220 133 133 3 Melee 305 | . . . . . . . 4 5 6 57 1 4 15 6 28 . . . 17 13 14 18 3 . . . 31 . 83 . Ram 8 | . . . . . . . . . . . . . . . . . . . 4 . . . . . . . 1 . 3 . Kick . | . . . . . . . . . . . . . . . . . . . . . . . . . . . . . . . Crush 16 | . 5 7 . 1 1 . 1 . . . . . . . . . . . . . . . . . . . . . . 1 Escape Stasis 391 | . . . . . . 10 . 6 . . . 104 . 32 . 52 . . 72 22 . 6 . . . 48 13 26 . . Rewire 2 | . . . . . . . . . . . . . . . 1 . . . . . . . . . . . 1 . . . Trap 84 | . . . . . 15 4 5 5 32 . 1 10 1 4 7 . . . . . . . . . . . . . . . Miscellaneous . | . . . . . . . . . . . . . . . . . . . . . . . . . . . . . . . Route ------- -11/Scrapyard -10/Materials (discovered 3 exits: [*Mat] / *Min x2) -10/Mines (discovered 3 exits: [*Mat x2] / *Exi) -10/Exiles -9/Mines -8/Materials (discovered 3 exits: *Fac x2 / Gar) -8/Garrison (discovered 3 exits: *Mat x3) -8/Materials (discovered 2 exits: Sto / Gar) -8/Garrison (discovered 2 exits: *Fac x2) -7/Factory (discovered 4 exits: *Fac / *Low x2 / Gar) -7/Waste -7/Factory -7/Garrison (discovered 2 exits: *Fac x2) -7/Factory (discovered 2 exits: *Low / Gar) -7/Garrison (discovered 2 exits: *Fac x2) -6/Factory (discovered 3 exits: [*Low x2] / Gar) -6/Garrison (discovered 2 exits: *Fac x2) -5/Factory (discovered 2 exits: [*Upp] / [*Ext]) -5/Waste -5/Factory (discovered 4 exits: *Fac x2 / [*Ext] / Gar) -5/Garrison (discovered 2 exits: *Fac x2) -5/Factory -5/Garrison (discovered 3 exits: *Fac x3) -4/Factory -4/Waste -4/Factory -4/Garrison (discovered 2 exits: *Res x2) -3/Research (discovered 3 exits: *Res / [*Tes] / Gar) -3/Garrison (discovered 2 exits: *Res x2) -2/Research -2/Quarantine History --------- Turn | Location | Event 25 | -11/Scrapyard | Discovered new exit (range 15) 142 | -11/Scrapyard | Entered Materials 344 | -10/Materials | Build established: Mutant 401 | -10/Materials | Identified exit to Mines 566 | -10/Materials | Discovered new exit (range 12) 773 | -10/Materials | Entered Mines 780 | -10/Mines | Received a Rocket Launcher from a helpful Derelict 857 | -10/Mines | Discovered new exit (range 7) 1017 | -10/Mines | Discovered new exit (range 9) 1394 | -10/Mines | YI-UF0 nonchalantly dropped a Grenade Launcher on the ground 1430 | -10/Mines | Learned Materials trap positions 1449 | -10/Mines | Found a damaged Exp. Sensor Array with a note attached 1453 | -10/Mines | Found Prototype Device 1608 | -10/Mines | Deemed a non-threat by the Exiles lab entrance 1608 | -10/Mines | Discovered new exit (range 5) 1615 | -10/Mines | Entered Exiles 1655 | -10/Exiles | Met 8R-AWN 1679 | -10/Exiles | Met EX-HEX 1838 | -10/Exiles | Met EX-DEC 1948 | -10/Exiles | Learned location of Zion (-7) 2037 | -10/Exiles | Build established: Hauler-Mutant 2058 | -10/Exiles | Discovered new exit (range 14) 2228 | -10/Exiles | Met EX-BIN 2250 | -10/Exiles | Aligned with FarCom system 2252 | -10/Exiles | Given EX-Vault access code 2298 | -10/Exiles | Opened EX-Vault 2312 | -10/Exiles | Found PSU Rigger 2357 | -10/Exiles | Warned to stay clear of 0b10 Research branches 2380 | -10/Exiles | Exiles lab attacked by MAIN.C 2560 | -10/Exiles | Left Exiles lab with PSU Rigger 2560 | -10/Exiles | Entered Mines 2577 | -9/Mines | Assembled infested the area 2582 | -9/Mines | Assisted by a Guerilla fighting off Assembled 2598 | -9/Mines | Core integrity fell below 50% 2634 | -9/Mines | Destroyed 10 combat bots 2985 | -9/Mines | Learned 2 Materials zone layouts 3211 | -9/Mines | Discovered new exit (range 7) 3227 | -9/Mines | Entered Materials 3227 | -8/Materials | Evolved 4 slots: Propulsion x1, Utility x3 3229 | -8/Materials | Loaded intel: 11 trap records 3254 | -8/Materials | Identified Exp. Sensor Array 4029 | -8/Materials | Discovered new exit (range 12) 4215 | -8/Materials | Central database locked down 4581 | -8/Materials | Discovered new exit (range 11) 4954 | -8/Materials | Identified exit to Garrison 4959 | -8/Materials | Entered Garrison 5048 | -8/Garrison | Triggered checkpoint 5062 | -8/Garrison | Triggered checkpoint 5115 | -8/Garrison | Discovered new exit (range 8) 5298 | -8/Garrison | Discovered new exit (range 13) 5331 | -8/Garrison | Installed Relay Interface Framework 5442 | -8/Garrison | Triggered checkpoint 5504 | -8/Garrison | Discovered new exit (range 13) 5548 | -8/Garrison | Triggered checkpoint 5575 | -8/Garrison | Garrison Relay disabled 5764 | -8/Garrison | Triggered checkpoint 5805 | -8/Garrison | Garrison Relay disabled 5887 | -8/Garrison | Entered Materials 6341 | -8/Materials | Identified exit to Storage 6415 | -8/Materials | Repaired Broken Exp. Sensor Array? 6760 | -8/Materials | Garrison activated, responded to threat 7186 | -8/Materials | Identified exit to Garrison 7186 | -8/Materials | Entered Garrison 7504 | -8/Garrison | Triggered checkpoint 7648 | -8/Garrison | Discovered new exit (range 10) 7696 | -8/Garrison | Triggered checkpoint 7723 | -8/Garrison | Garrison Relay disabled 7939 | -8/Garrison | Discovered new exit (range 12) 7970 | -8/Garrison | Expanded RIF knowledge: Robot Detection 8024 | -8/Garrison | Triggered checkpoint 8089 | -8/Garrison | Garrison Relay disabled 8202 | -8/Garrison | Triggered checkpoint 8291 | -8/Garrison | Garrison Relay disabled 8376 | -8/Garrison | Build established: Bothacker-Mutant 8552 | -8/Garrison | Triggered checkpoint 8560 | -8/Garrison | Garrison Relay disabled 8715 | -8/Garrison | Entered Factory 8715 | -7/Factory | Evolved 2 slots: Utility x2 9192 | -7/Factory | Identified exit to Garrison 9859 | -7/Factory | Discovered new exit (range 15) 10002 | -7/Factory | Discovered new exit (range 5) 10470 | -7/Factory | Identified exit to Lower Caves 10599 | -7/Factory | Sucked down chute 10599 | -7/Factory | Entered Waste 10620 | -7/Waste | Spotted C-40 Crusher 10627 | -7/Waste | Spotted C-40 Crusher 10675 | -7/Waste | Spotted C-40 Crusher 10685 | -7/Waste | Spotted C-40 Crusher 10687 | -7/Waste | Spotted C-40 Crusher 10731 | -7/Waste | Crushed by Compactor (0 parts destroyed, 1 dropped) 10754 | -7/Waste | Spotted C-40 Crusher 11036 | -7/Waste | Discovered new exit (range 13) 11159 | -7/Waste | Build established: Hauler-Mutant 11444 | -7/Waste | Destroyed C-40 Crusher 11605 | -7/Waste | Warlord forces began an assault 11613 | -7/Waste | Allies destroyed C-40 Crusher 11748 | -7/Waste | Found Damper Plating 12010 | -7/Waste | Entered Factory 12010 | -7/Factory | Accompanied by 10 allies 12917 | -7/Factory | Fabricated Humpback? 12963 | -7/Factory | P-60 Hacker assimilated allied XA-BUX(g) 13003 | -7/Factory | Local fabrication network quarantined 13390 | -7/Factory | Repaired Broken Arm. Treads? 13775 | -7/Factory | Identified exit to Garrison 13858 | -7/Factory | Entered Garrison 14170 | -7/Garrison | Triggered checkpoint 14246 | -7/Garrison | Discovered new exit (range 8) 14264 | -7/Garrison | Expanded RIF knowledge: Alert ID Control 14332 | -7/Garrison | Triggered checkpoint 14370 | -7/Garrison | Garrison Relay disabled 14468 | -7/Garrison | Triggered checkpoint 14558 | -7/Garrison | Triggered checkpoint 14611 | -7/Garrison | Garrison Relay disabled 14680 | -7/Garrison | Build established: Bothacker-Mutant 14714 | -7/Garrison | Triggered checkpoint 14834 | -7/Garrison | Triggered checkpoint 14916 | -7/Garrison | Garrison Relay disabled 15035 | -7/Garrison | Discovered new exit (range 9) 15046 | -7/Garrison | Entered Factory 16015 | -7/Factory | Fabricated Humpback (x1) 16041 | -7/Factory | Fabricated Humpback (x1) 16243 | -7/Factory | Discovered exit to Lower Caves (range 4) 16661 | -7/Factory | Identified exit to Garrison 16661 | -7/Factory | Entered Garrison 16669 | -7/Garrison | Expanded RIF knowledge: Signal Jamming 16773 | -7/Garrison | Triggered checkpoint 16816 | -7/Garrison | Garrison Relay disabled 16966 | -7/Garrison | Triggered checkpoint 17044 | -7/Garrison | Triggered checkpoint 17208 | -7/Garrison | Triggered checkpoint 17344 | -7/Garrison | Triggered checkpoint 17374 | -7/Garrison | Garrison Relay disabled 17471 | -7/Garrison | Triggered checkpoint 17585 | -7/Garrison | Discovered new exit (range 12) 17612 | -7/Garrison | Triggered checkpoint 17669 | -7/Garrison | Garrison Relay disabled 17856 | -7/Garrison | Discovered new exit (range 10) 17964 | -7/Garrison | Build established: Botlord-Mutant 17969 | -7/Garrison | Found Hvy. Reflective Plating 17973 | -7/Garrison | Found Hvy. Reflective Plating 18508 | -7/Garrison | Entered Factory 18508 | -6/Factory | Accompanied by 5 allies 18508 | -6/Factory | Evolved 2 slots: Utility x2 18573 | -6/Factory | Discovered new exit (range 5) 19314 | -6/Factory | Fabricated Imp. Plasma Cutter (x2) 19659 | -6/Factory | Build established: Bothacker-Mutant 19701 | -6/Factory | Garrison activated, responded to threat 20222 | -6/Factory | Found Prototype Launcher 20222 | -6/Factory | Identified Rocket Array 20299 | -6/Factory | Discovered new exit (range 11) 20316 | -6/Factory | Fabricated Rnf. Deuterium Engine? 20491 | -6/Factory | Local fabrication network quarantined 20608 | -6/Factory | First assault squad dispatched 21124 | -6/Factory | Lost 12 parts (2p2n5u3w) 21133 | -6/Factory | Destroyed 10 combat bots 21159 | -6/Factory | Core integrity fell below 50% 21217 | -6/Factory | Lost 7 parts (1p3n1u2w) 21307 | -6/Factory | Build established: Mutant 21628 | -6/Factory | Build established: Scavenger-Mutant 21784 | -6/Factory | Identified exit to Garrison 21798 | -6/Factory | Entered Garrison 21866 | -6/Garrison | Triggered checkpoint 21880 | -6/Garrison | Core integrity fell below 20% 21951 | -6/Garrison | Garrison Relay disabled 22232 | -6/Garrison | Triggered checkpoint 22236 | -6/Garrison | Triggered checkpoint 22297 | -6/Garrison | Lost 5 parts (1p1u3w) 22309 | -6/Garrison | Destroyed 7 combat bots 22390 | -6/Garrison | Discovered new exit (range 8) 22546 | -6/Garrison | Discovered new exit (range 15) 22748 | -6/Garrison | Entered Factory 22748 | -5/Factory | Evolved 2 slots: Propulsion x1, Utility x1 24212 | -5/Factory | Discovered new exit (range 10) 24228 | -5/Factory | Discovered new exit (range 14) 24283 | -5/Factory | Garrison activated, responded to threat 24531 | -5/Factory | Lost 4 parts (1n1u2w) 24616 | -5/Factory | Found Tesla Bomb Launcher 24621 | -5/Factory | Manually triggered Chute Trap 24621 | -5/Factory | Sucked down chute 24621 | -5/Factory | Entered Waste 24629 | -5/Waste | Spotted C-40 Crusher 24636 | -5/Waste | EMP discharged 24636 | -5/Waste | System corruption reached 10% 24638 | -5/Waste | Spotted C-40 Crusher 24644 | -5/Waste | Spotted C-40 Crusher 24645 | -5/Waste | Spotted C-40 Crusher 24646 | -5/Waste | Discovered new exit (range 16) 24649 | -5/Waste | Lost 7 parts (2n3u2w) 24654 | -5/Waste | Entered Factory 24873 | -5/Factory | Build established: Mutant 25057 | -5/Factory | Local fabrication network quarantined 25093 | -5/Factory | Fabricated Humpback? 25398 | -5/Factory | Build established: Hauler-Mutant 25748 | -5/Factory | Discovered new exit (range 10) 26219 | -5/Factory | Lost 4 parts (1p1n2u) 26233 | -5/Factory | Discovered new exit (range 8) 26302 | -5/Factory | Spotted B-75 Beast 26550 | -5/Factory | Repaired Arm. Huge Wheel? 26614 | -5/Factory | Discovered new exit (range 15) 26797 | -5/Factory | Build established: Hacker-Mutant 27019 | -5/Factory | Identified exit to Garrison 27019 | -5/Factory | Entered Garrison 27048 | -5/Garrison | Triggered checkpoint 27097 | -5/Garrison | Garrison Relay disabled 28584 | -5/Garrison | Triggered checkpoint 28615 | -5/Garrison | Discovered new exit (range 11) 28696 | -5/Garrison | Triggered checkpoint 28741 | -5/Garrison | Spotted B-75 Beast 28772 | -5/Garrison | Lost 9 parts (1n6u2w) 28823 | -5/Garrison | Core integrity fell below 50% 28932 | -5/Garrison | Triggered checkpoint 29044 | -5/Garrison | Triggered checkpoint 29051 | -5/Garrison | Garrison Relay disabled 29091 | -5/Garrison | Discovered new exit (range 12) 29110 | -5/Garrison | Expanded RIF knowledge: Hotswap 29190 | -5/Garrison | Entered Factory 29357 | -5/Factory | Build established: Bothacker-Mutant 29607 | -5/Factory | Fabricated Cmb. Linear Gravjet? 29675 | -5/Factory | Fabricated Cmb. Linear Gravjet? 29964 | -5/Factory | Fabricated Cmb. Linear Gravjet (x2) 29990 | -5/Factory | Garrison activated, responded to threat 30090 | -5/Factory | First assault squad dispatched 30207 | -5/Factory | Local fabrication network quarantined 30207 | -5/Factory | Identified exit to Garrison 30207 | -5/Factory | Entered Garrison 30254 | -5/Garrison | Triggered checkpoint 30280 | -5/Garrison | Garrison Relay disabled 30585 | -5/Garrison | Build established: Botlord-Mutant 30688 | -5/Garrison | Spotted B-75 Beast 30729 | -5/Garrison | Triggered checkpoint 30779 | -5/Garrison | Destroyed B-75 Beast 30888 | -5/Garrison | Discovered new exit (range 10) 30935 | -5/Garrison | Triggered checkpoint 30971 | -5/Garrison | Garrison Relay disabled 31046 | -5/Garrison | Triggered checkpoint 31054 | -5/Garrison | Triggered checkpoint 31207 | -5/Garrison | Discovered new exit (range 12) 31220 | -5/Garrison | Expanded RIF knowledge: Coupler Efficiency 31240 | -5/Garrison | Triggered checkpoint 31293 | -5/Garrison | Garrison Relay disabled 31344 | -5/Garrison | Discovered new exit (range 10) 31354 | -5/Garrison | Triggered checkpoint 31383 | -5/Garrison | Garrison Relay disabled 31417 | -5/Garrison | Entered Factory 31417 | -4/Factory | Evolved 2 slots: Power x1, Utility x1 31522 | -4/Factory | Assembled infested ambush trap array 31620 | -4/Factory | Fabricated Shock Bomb Launcher? 31714 | -4/Factory | First assault squad dispatched 31752 | -4/Factory | Spotted B-86 Titan 31862 | -4/Factory | Sucked down chute 31862 | -4/Factory | Entered Waste 31869 | -4/Waste | Lost 4 parts (1p3u) 31873 | -4/Waste | Spotted C-40 Crusher 31874 | -4/Waste | Spotted C-40 Crusher 31877 | -4/Waste | EMP discharged 31877 | -4/Waste | System corruption reached 10% 31880 | -4/Waste | Spotted C-40 Crusher 31897 | -4/Waste | Spotted C-40 Crusher 31899 | -4/Waste | Spotted C-40 Crusher 31914 | -4/Waste | Spotted C-40 Crusher 31914 | -4/Waste | Discovered new exit (range 14) 31950 | -4/Waste | Entered Factory 32302 | -4/Factory | Fabricated Hcp. Storage Unit? 32515 | -4/Factory | Identified exit to Garrison 32515 | -4/Factory | Entered Garrison 32523 | -4/Garrison | Expanded RIF knowledge: Autooverride 32562 | -4/Garrison | Triggered checkpoint 32640 | -4/Garrison | Garrison Relay disabled 32758 | -4/Garrison | Triggered checkpoint 32811 | -4/Garrison | Spotted B-86 Titan 32826 | -4/Garrison | Triggered checkpoint 32939 | -4/Garrison | Destroyed B-86 Titan 33043 | -4/Garrison | Discovered new exit (range 10) 33068 | -4/Garrison | Triggered checkpoint 33115 | -4/Garrison | Garrison Relay disabled 33321 | -4/Garrison | Spotted B-86 Titan 33358 | -4/Garrison | Triggered checkpoint 33365 | -4/Garrison | Discovered new exit (range 8) 33410 | -4/Garrison | Found Adv. Powered Armor 33413 | -4/Garrison | Found Adv. Powered Armor 33416 | -4/Garrison | Found Adv. Powered Armor 33436 | -4/Garrison | Triggered checkpoint 33605 | -4/Garrison | Garrison Relay disabled 33650 | -4/Garrison | Entered Research 33650 | -3/Research | Evolved 2 slots: Utility x2 33817 | -3/Research | Fabricated Cmb. Linear Gravjet? 34061 | -3/Research | System corruption reached 10% 34109 | -3/Research | Lost 5 parts (1p2u2w) 34287 | -3/Research | Discovered new exit (range 10) 34379 | -3/Research | Spotted B-86 Titan 34431 | -3/Research | Found Prototype Processor 34431 | -3/Research | Identified Spectral Analyzer 34459 | -3/Research | Discovered new exit (range 10) 34549 | -3/Research | Lost 7 parts (2p3u2w) 34666 | -3/Research | Lost 9 parts (1p5u3w) 34721 | -3/Research | Lost 3 parts (1n1u1w) 35128 | -3/Research | Build established: Scavenger-Mutant 35279 | -3/Research | Core integrity fell below 50% 35474 | -3/Research | Build established: Botlord-Mutant 35500 | -3/Research | System corruption reached 30% 35549 | -3/Research | Lost 3 parts (1n2u) 35672 | -3/Research | Found Prototype Protection 35672 | -3/Research | Identified Centrium Heavy Armor Plating 35812 | -3/Research | Garrison activated, responded to threat 36068 | -3/Research | Found Prototype Device 36117 | -3/Research | Identified exit to Garrison 36131 | -3/Research | Entered Garrison 36160 | -3/Garrison | Lost 3 parts (2n1w) 36301 | -3/Garrison | Triggered checkpoint 36335 | -3/Garrison | Garrison Relay disabled 36438 | -3/Garrison | Triggered checkpoint 36604 | -3/Garrison | Spotted B-86 Titan 36621 | -3/Garrison | Triggered checkpoint 36637 | -3/Garrison | Allies destroyed B-86 Titan 36674 | -3/Garrison | Found Unknown Protection 36674 | -3/Garrison | Identified Hvy. Reflective Plating 36688 | -3/Garrison | Triggered checkpoint 36718 | -3/Garrison | Discovered new exit (range 10) 36759 | -3/Garrison | Triggered checkpoint 36822 | -3/Garrison | Lost 3 parts (2u1w) 36844 | -3/Garrison | Discovered new exit (range 10) 36854 | -3/Garrison | Expanded RIF knowledge: Command Fork 36943 | -3/Garrison | Triggered checkpoint 37062 | -3/Garrison | Garrison Relay disabled 37124 | -3/Garrison | Triggered checkpoint 37177 | -3/Garrison | Garrison Relay disabled 37218 | -3/Garrison | Entered Research 37218 | -2/Research | Accompanied by 2 allies 37218 | -2/Research | Evolved 2 slots: Propulsion x1, Utility x1 37300 | -2/Research | Garrison activated, responded to threat 37647 | -2/Research | Identified Exp. Shield Generator 37723 | -2/Research | Lost 3 parts (1n1u1w) 37964 | -2/Research | System corruption reached 10% 38028 | -2/Research | Lost 5 parts (1n3u1w) 38054 | -2/Research | Discovered new exit (range 8) 38306 | -2/Research | Lost 3 parts (2u1w) 38427 | -2/Research | Lost 7 parts (1p5n1u) 38603 | -2/Research | Lost 11 parts (6n5u) 38732 | -2/Research | Lost 6 parts (1p1n1u3w) 38756 | -2/Research | Core integrity fell below 50% 38775 | -2/Research | System corruption reached 30% 38852 | -2/Research | Lost 4 parts (1p2n1w) 38996 | -2/Research | Build established: Scavenger-Mutant 38998 | -2/Research | Entered Quarantine 38999 | -2/Quarantine | Maximum security lockdown engaged 39003 | -2/Quarantine | Spotted Alpha 7 39086 | -2/Quarantine | Cryocooling Duct disabled 39090 | -2/Quarantine | Core integrity fell below 20% 39101 | -2/Quarantine | Ambient heat levels rising (+20) 39124 | -2/Quarantine | Destroyed by P-80 Master with Gamma Rifle Last Messages --------------- 39073_ Imp. Antigrav System destroyed. 39073_ Enh. Nova Cannon destroyed. 39075_ O-24 Administrator distress signal jammed. 39075_ O-24 Administrator: "IFF HANDSHAKE FAILED. SECURING TERMINAL." 39081_ Terminal disabled. 39086_ 0SFCFG8AFRTLU:RVX0Z#WDM9PN8TLK 39086_ Cryocooling Duct disabled. 39091_ Broken Exp. Optical Array destroyed. 39096_ Mic. Fission Core destroyed. 39099_ ALERT: Assault forces dispatched. 39101_ System corrupted: Matter fused (-5). 39101_ ALERT: Ambient heat levels +20. 39107_ Broken Cmb. Linear Gravjet destroyed. 39108_ Acquired Unknown Treads. 39108_ Identified Biometal Medium Treads. 39109_ P-80 Master resets P-80 Master, system corruption cleaned. 39110_ Mic. Fission Core destroyed. 39116_ Slammed into P-80 Master. 39121_ Biometal Medium Treads destroyed. 39123_ System corrupted: Matter fused (-7). Map ----- +----------------------------------------------------+ | | | | | | | ?????????????????????????????????????????????????? | | ?????????????????????????????????????????????????? | | ?????????????????????????????????????????????????? | | ?????????????????????????????????????????????????? | | ?????????????????????????????????????????????????? | | ?????????????????????????????????????????????????? | | ?????????????????????????????????????????????????? | | ?????????????????????????????????????????????????? | | ?????????????????????????????????????????????????? | | ?????????????????????????????????????????????????? | | ?????????????????????????????????????????????????? | | ?????????????????????????????????????????????????? | | ?????????????????????###+##??????????????????????? | | ????????????????????? ??????????????????????? | | ?????????????????????? ??????????????????????? | | ?????????????????????? ??????????????????????? | | ??????????????????????# p#??????????????????????? | | ??????????????????????# #??????????????????????? | | ??????????????????????# #??????????????????????? | | ??????????????????????# #??????????????????????? | | ?????????ggg??????????# p#??????????????????????? | | ??????????????????????# #??????????????????????? | | ?????????????????????## @##?????????????????????? | | ??????????? ####### #????#######??????????? | | ??????????? " ###### !#??????????? | | ?????????? "T p p p/ #??????????? | | ???????????" %###### #??????????? | | ???????????? ####### #????# #??????????? | | ???????????? ????#######+#####??# """ #??????????? | | ?????????????????# |#??# """ #??????????? | | ?????????????????# """"" #??# """ #??????????? | | ?????????????????# "" " = ! #??#######??????????? | | ???????" """ ### #???????????????????? | | ??? + """ "" #???????????????????? | | ??? ! #### """"""""" #???????????????????? | | ?????????????????# #???????????????????? | | ?????????????????#"#############?????????????????? | | ?????????????????## #?????????????????? | | ??????????????????# """ """ #?????????????????? | | ??????????????????#! """ """ #?????????????????? | | ??????????????????# """ """ #?????????????????? | | ??????????????????# """ """ #?????????????????? | | ??????????????????# """ """ #?????????????????? | | ??????????????????# """ """ = #?????????????????? | | ??????????????????# """ """ #?????????????????? | | ??????????????????# #?????????????????? | | ??????????????????# #?????????????????? | +----------------------------------------------------+ Best States ------------- Heat Dissipation 111 Coolant Potential 80 Energy Generation 39 Energy Capacity 1260 Matter Stores 300 Matter Capacity 300 Sight Range 23 Terrain Scan Range 14 Terrain Scan Density 10 Cloak Strength 4 Base Temperature (-) 200 Corruption Prevention 20 Armor Coverage 1200 Resistance: TH 25 Resistance: EM 90 Core Shielding 30 Propulsion Shielding 66 Phase Shifting 5 Evasion (%) 72 Targeting Accuracy 8 Melee Accuracy 8 Launcher Accuracy 30 Target Analysis 8 Recoil Reduction 3 Particle Charging 20 Offensive Hacking 14 Defensive Hacking 52 Relay Coupler Types 210 Relay Coupler Value 5 Item Schematics ----------------- Humpback | -8/Materials | Scanalyzed Rnf. Deuterium Engine | -8/Materials | Scanalyzed Exp. Sensor Array | -8/Materials | Scanalyzed Mak. Power Source | -8/Materials | Scanalyzed Hcp. Storage Unit | -7/Factory | Scanalyzed Shock Bomb Launcher | -7/Factory | Scanalyzed Adv. EMP Blaster | -7/Factory | Scanalyzed Cmb. Linear Gravjet | -5/Factory | Scanalyzed Lance | -4/Factory | Scanalyzed Imp. Remote Datajack | -4/Factory | Scanalyzed HERF Cannon | -4/Factory | Scanalyzed Adv. Powered Armor | -3/Research | Scanalyzed Robot Schematics ------------------ None Fabricated ------------ Humpback | x1 | -7/Factory Humpback | x1 | -7/Factory Humpback | x1 | -7/Factory Imp. Plasma Cutter | x2 | -6/Factory | Preloaded Rnf. Deuterium Engine | x2 | -6/Factory Humpback | x1 | -5/Factory Cmb. Linear Gravjet | x2 | -5/Factory Cmb. Linear Gravjet | x2 | -5/Factory Cmb. Linear Gravjet | x2 | -5/Factory Shock Bomb Launcher | x1 | -4/Factory Hcp. Storage Unit | x1 | -4/Factory Cmb. Linear Gravjet | x2 | -3/Research Alien Tech Used ----------------- None Achievements -------------- None Challenges ------------ None Game ------ Seed KineticMatterBeam Manual? 0 Play Time 07:48:57 Cumulative 319.1 hours Start 2021.10.10 @ 18:54:27 End 2021.11.29 @ 17:52:37 Sessions 13 Manual Loads 0 Difficulty Rogue Special Mode None Game No. 117 Rogue 117 Adventurer 0 Explorer 0 Win Type - Total 12 Types 10/0/1/1/0/0/0/0/0 Lore% 66 Gallery% 87 Achievement% 67 Wizard Run 0 Options --------- ASCII 0 Keyboard 0 Movement Numpad Keybinds 0 Fullscreen 1 Font 18/SmallcapsGlow Map View 76x50 Tactical HUD 1 Map Filters NONE Filters NONE Steam 1 RUN: 9f3106e5-211f-4304-aa42-37a205dc8d9a